{"text_format":"1","workbook":"xlsx","n_sheets":3,"sheets":["01_AÇIKLAMALAR","02_AKADEMİK PERSONEL PERFORMANS","03_PERFORMANS ÖZETİ & GRAFİKLER"],"not_rendered":{"charts":2,"images":0,"macros":1,"external_links":0,"defined_names":0,"comments":0,"pivot_tables":0},"unopened":[],"bounds":{"document_bytes":16777216,"sheet_cells":100000,"rows_first":2000,"rows_last":500,"rows_between":2000,"halvings":0,"cell_chars":16384,"cell_head_chars":4096},"cells_cut":0,"cells_raw":0,"read":"whole","date_system":"1900"}

{"sheet":"01_AÇIKLAMALAR","index":0,"n_rows":10,"n_cols":2,"rows_kept":10,"cut":false,"hidden":false,"merged":[]}
[null,"Sayın Öğretim Elemanı,"]
["a","02_ sekmesinde yer alan akademik faaliyetlerinize ait sayısal verileri özgeçmişinizdeki kayıtlara uygun şekilde tanımlamanız gerekmektedir."]
["b","Dosyayı tamamladıktan sonra, dosya adındaki İSİM_SOYADI sözcüğünün silinip, yerine kendi isim ve soyadınızın büyük harflerle yazıldığından emin olarak kaydediniz."]
["c","Tabloda yer alan verileri özgeçmişinizle karşılaştırarak son kez doğruluğundan emin olunuz."]
["d","Elektronik ortamdaki bu dosyayı e-posta ile; ayrıca 02 nolu sekmede yer alan tablonun basılı bir kopyasını İMZALAYARAK, ÖZGEÇMİŞİNİZ ile birlikte  A4 dosya içinde belirtilen tarihe kadar Çalışma Grubu Başkanınıza iletiniz."]
[]
[]
[null,"Katkılarınız için teşekkür ederiz."]
[]
[null,"İTÜ Mimarlık Fakültesi Dekanlığı"]

{"sheet":"02_AKADEMİK PERSONEL PERFORMANS","index":1,"n_rows":139,"n_cols":9,"rows_kept":139,"cut":false,"hidden":false,"merged":[[0,1,0,21],[6,1,6,6],[138,2,138,5]]}
[null,"ÇALIŞMA GRUBU AKADEMİK PERSONEL PERFORMANS VERİLERİ TABLOSU"]
[null,"AKADEMİK PERSONELİN"]
[null,"ADI:",null,null,null,"Alaattin"]
[null,"SOYADI:",null,null,null,"KANOĞLU"]
[null,"UNVANI:",null,null,null,"Prof.Dr."]
[null,"ÇALIŞMA GRUBU:",null,null,null,"Tasarım ve Yapımda Yönetim Bilimleri Çalışma Grubu"]
[null,"İTÜ Senatosu 2014 yılından itibaren geçerli olan Atama Yükseltme Sistemine göre düzenlenmiştir. Bu tabloda öğretim üyesinin performansına ait veriler tanımlanmalıdır; tabloyu doldurduktan sonra lütfen bildirilen süre zarfında bu dosyanın elektronik versiyonunu, basılı ve ISLAK İMZALI versiyonu ve basılı özgeçmişiniz ile birlikte ÇG Başkanınıza iletiniz.Katkılarınız için teşekkür ederiz.",null,null,null,null,null,"Faaliyete ilişkin toplam sayı yazılacaktır","Toplam puan yazılacaktır; faaliyeti gerçekleştirenlerin sayısına göre değişebildiğinden soldaki puan ile otomatik olarak çarpılamamaktadır;  öğretim üyesi tarafından hesaplanıp yazılacaktır."]
[null,null,"DZ_1 Kodu","DZ_2 Kodu","DZ_3 Kodu","Faaliyet Tanımı","İTÜ Akademik Atama Esasları Puanı","SAYI","PUAN"]
[null,null,"A",null,null,"Uluslararası Araştırma Makaleleri "]
[null,null,null,"A1",null,"TÜBİTAK Uluslararası Dergi Puanlama Sisteminde yer alan dergilerde yayınlanmış"]
[null,null,null,null,"A1a","TÜBİTAK 70-100 Puan dilimindeki dergilerde yayınlanmış eserler",10,0,0]
[null,null,null,null,"A1b","TÜBİTAK 40-069 Puan dilimindeki dergilerde yayınlanmış eserler",8,0,0]
[null,null,null,null,"A1c","TÜBİTAK 00-039 Puan dilimindeki dergilerde yayınlanmış eserler",6,13,{"$f":"H13*G13","v":78}]
[null,null,null,"A2",null,"İTÜ Listesinde yer alan diğer indekslerde taranan dergilerde yayınlanmış eserler"]
[null,null,null,null,"A2a","İTÜ Diğer İndeksler",4,0,0]
[null,null,null,null,"A2b","Rezerv"]
[null,null,"A",null,null,"Uluslararası Araştırma Makaleleri Toplamı",null,{"$f":"SUM(H11:H16)","v":13},{"$f":"SUM(I11:I16)","v":78}]
[null,null,"DZ_1 Kodu","DZ_2 Kodu","DZ_3 Kodu","Faaliyet Tanımı","İTÜ Akademik Atama Esasları Puanı","SAYI","PUAN"]
[null,null,"B",null,null,"Uluslararası Bildiriler"]
[null,null,null,"B1",null,"Tam metinli bildiriler",3,10,30]
[null,null,null,"B2",null,"Genişletilmiş özet",2,0,0]
[null,null,null,"B3",null,"Özet",1,0,0]
[null,null,"B",null,null,"Uluslararası Bildiriler Toplamı",null,{"$f":"SUM(H11:H17)","v":26},{"$f":"SUM(I11:I17)","v":156}]
[null,null,"DZ_1 Kodu","DZ_2 Kodu","DZ_3 Kodu","Faaliyet Tanımı","İTÜ Akademik Atama Esasları Puanı","SAYI","PUAN"]
[null,null,"C",null,null,"Uluslararası Kitap"]
[null,null,null,"C1",null,"Kitap yazarlığı",50,0,0]
[null,null,null,"C2",null,"Kitap içinde bölüm yazarlığı",20,0,0]
[null,null,null,"C3",null,"Editörlük",30,0,0]
[null,null,"C",null,null,"Uluslararası Kitap Toplamı",null,{"$f":"SUM(H26:H28)","v":0},{"$f":"SUM(I26:I28)","v":0}]
[null,null,"DZ_1 Kodu","DZ_2 Kodu","DZ_3 Kodu","Faaliyet Tanımı","İTÜ Akademik Atama Esasları Puanı","SAYI","PUAN"]
[null,null,"D",null,null,"Ulusal Araştırma Makaleleri"]
[null,null,null,"D1",null,"Hakemli dergilerde yayınlanan makaleler",3,1,3]
[null,null,null,"D2",null,"Rezerv"]
[null,null,"D",null,null,"Ulusal Araştırma Makaleleri Toplamı",null,{"$f":"SUM(H32:H33)","v":1},{"$f":"SUM(I32:I33)","v":3}]
[null,null,"DZ_1 Kodu","DZ_2 Kodu","DZ_3 Kodu","Faaliyet Tanımı","İTÜ Akademik Atama Esasları Puanı","SAYI","PUAN"]
[null,null,"E",null,null,"Ulusal Bildiriler"]
[null,null,null,"E1",null,"Tam metinli bildiriler",2,14,28]
[null,null,null,"E2",null,"Rezerv"]
[null,null,null,"E3",null,"Rezerv"]
[null,null,"E",null,null,"Ulusal Bildiriler Toplamı",null,{"$f":"SUM(H37:H39)","v":14},{"$f":"SUM(I37:I39)","v":28}]
[null,null,"DZ_1 Kodu","DZ_2 Kodu","DZ_3 Kodu","Faaliyet Tanımı","İTÜ Akademik Atama Esasları Puanı","SAYI","PUAN"]
[null,null,"F",null,null,"Ulusal Kitaplar"]
[null,null,null,"F1",null,"Kitap yazarlığı",20,0,0]
[null,null,null,"F2",null,"Kitap çevirisi",10,0,0]
[null,null,null,"F3",null,"Kitap içinde bölüm yazarlığı",6,0,0]
[null,null,null,"F4",null,"Kitap içinde bölüm çevirisi",4,0,0]
[null,null,null,"F5",null,"Editörlük",4,0,0]
[null,null,"F",null,null,"Ulusal Kitaplar Toplamı",null,{"$f":"SUM(H43:H47)","v":0},{"$f":"SUM(I43:I47)","v":0}]
[null,null,"DZ_1 Kodu","DZ_2 Kodu","DZ_3 Kodu","Faaliyet Tanımı","İTÜ Akademik Atama Esasları Puanı","SAYI","PUAN"]
[null,null,"G",null,null,"Uluslararası atıflarla ilgili etki faktörü (e.f.)"]
[null,null,null,"G1",null,"Etki faktörü",10,0,0]
[null,null,null,"G2",null,"Rezerv"]
[null,null,"G",null,null,"Uluslararası atıflarla ilgili etki faktörü (e.f.) Puanı Toplamı",null,{"$f":"SUM(H51)","v":0},{"$f":"SUM(I51)","v":0}]
[null,null,"DZ_1 Kodu","DZ_2 Kodu","DZ_3 Kodu","Faaliyet Tanımı","İTÜ Akademik Atama Esasları Puanı","SAYI","PUAN"]
[null,null,"H",null,null,"H İndeksi"]
[null,null,null,"H1",null,"H İndeksi",10,4,40]
[null,null,null,"H2",null,"Rezerv"]
[null,null,"H",null,null,"H İndeksi Puanı Toplamı",null,{"$f":"SUM(H56)","v":4},{"$f":"SUM(I56)","v":40}]
[null,null,"DZ_1 Kodu","DZ_2 Kodu","DZ_3 Kodu","Faaliyet Tanımı","İTÜ Akademik Atama Esasları Puanı","SAYI","PUAN"]
[null,null,"I",null,null,"Uluslararası Dergilerde Hakemlik (20 puandan fazlası yazılmayacaktır)"]
[null,null,null,"I1",null,"Hakemlik",2,2,4]
[null,null,null,"I2",null,"Rezerv"]
[null,null,"I",null,null,"Uluslararası Dergilerde Hakemlikler Toplamı",null,{"$f":"SUM(H61:H62)","v":2},{"$f":"SUM(I61:I62)","v":4}]
[null,null,"DZ_1 Kodu","DZ_2 Kodu","DZ_3 Kodu","Faaliyet Tanımı","İTÜ Akademik Atama Esasları Puanı","SAYI","PUAN"]
[null,null,"J",null,null,"Madde A'daki Dergilerde Üstlenilen Görevler"]
[null,null,null,"J1",null,"A1 türü dergilerde editör",50,0,0]
[null,null,null,"J2",null,"A1 türü dergilerde editör yardımcısı",40,0,0]
[null,null,null,"J3",null,"A1 türü dergilerde editör listesinde",30,0,0]
[null,null,null,"J4",null,"A2 türü indekslerce taranan uluslararası/ulusal dergilerde editör",20,0,0]
[null,null,null,"J5",null,"A2 türü indekslerce taranan uluslararası/ulusal dergilerde editör yardımcısı",15,0,0]
[null,null,"J",null,null,"Madde A'daki Dergilerde Üstlenilen Görevler Toplamı",null,{"$f":"SUM(H66:H70)","v":0},{"$f":"SUM(I66:I70)","v":0}]
[null,null,"DZ_1 Kodu","DZ_2 Kodu","DZ_3 Kodu","Faaliyet Tanımı","İTÜ Akademik Atama Esasları Puanı","SAYI","PUAN"]
[null,null,"K",null,null,"Tez Yönetimi (Tamamlanmış)"]
[null,null,null,"K1",null,"İlk dört doktora tezi",6,1,6]
[null,null,null,"K2",null,"Sonraki doktora tezleri",2,0,0]
[null,null,null,"K3",null,"İlk dört yüksek lisans tezi",2,4,8]
[null,null,null,"K4",null,"Sonraki yüksek lisans tezleri",2,15,30]
[null,null,"K",null,null,"Tez Yönetimi Toplamı (Tamamlanmış)",null,{"$f":"SUM(H74:H77)","v":20},{"$f":"SUM(I74:I77)","v":44}]
[null,null,"DZ_1 Kodu","DZ_2 Kodu","DZ_3 Kodu","Faaliyet Tanımı","İTÜ Akademik Atama Esasları Puanı","SAYI","PUAN"]
[null,null,"L",null,null,"Patentler"]
[null,null,null,"L1",null,"Yurtdışı - A",50,0,0]
[null,null,null,"L2",null,"Yurtiçi",25,0,0]
[null,null,null,"L3",null,"Yurtdışı - B",15,0,0]
[null,null,"L",null,null,"Patentler Toplamı",null,{"$f":"SUM(H81:H83)","v":0},{"$f":"SUM(I81:I83)","v":0}]
[null,null,"DZ_1 Kodu","DZ_2 Kodu","DZ_3 Kodu","Faaliyet Tanımı","İTÜ Akademik Atama Esasları Puanı","SAYI","PUAN"]
[null,null,"M",null,null,"Ödüller"]
[null,null,null,"M1",null,"Sürekli ve periyodik, jürili uluslararası bilim ve sanat ödülleri"]
[null,null,null,null,"M1a","Sürekli ve periyodik, jürili uluslararası bilim ödülleri",80,0,0]
[null,null,null,null,"M1b","Sürekli ve periyodik, jürili uluslararası sanat ödülleri",80,0,0]
[null,null,null,"M2",null,"Sürekli ve periyodik, jürili ulusal bilim ve sanat ödülleri"]
[null,null,null,null,"M2a","TÜBİTAK/TÜBA bilim ödülleri",80,0,0]
[null,null,null,null,"M2b","TÜBİTAK/TÜBA teşvik ödülleri",40,0,0]
[null,null,null,null,"M2c","TÜBA Telif ve çeviri kitap ödülü",20,0,0]
[null,null,null,null,"M2d","Diğer ödüller",20,0,0]
[null,null,null,"M3",null,"Yarışma"]
[null,null,null,null,"M3a","Uluslararası derece",30,0,0]
[null,null,null,null,"M3b","Uluslararası mansiyon",20,0,0]
[null,null,null,null,"M3c","Uluslararası satınalma",10,0,0]
[null,null,null,null,"M3d","Ulusal derece",12,0,0]
[null,null,null,null,"M3e","Ulusal mansiyon",6,0,0]
[null,null,null,null,"M3f","Ulusal satınalma",3,0,0]
[null,null,"M",null,null,"Ödüller Toplamı",null,{"$f":"SUM(H88:H101)","v":0},{"$f":"SUM(I88:I101)","v":0}]
[null,null,"DZ_1 Kodu","DZ_2 Kodu","DZ_3 Kodu","Faaliyet Tanımı","İTÜ Akademik Atama Esasları Puanı","SAYI","PUAN"]
[null,null,"N",null,null,"Eğitime Katkı"]
[null,null,null,"N1",null,"Lisans düzeyinde verilen dersler (Formülden kredi hesabı için Bkz İTÜ Senato esasları)",2,3,22]
[null,null,null,"N2",null,"Yüksek Lisans düzeyinde verilen dersler",2,2,24]
[null,null,"N",null,null,"Eğitime Katkı Toplamı",null,{"$f":"SUM(H105:H106)","v":5},{"$f":"SUM(I105:I106)","v":46}]
[null,null,"DZ_1 Kodu","DZ_2 Kodu","DZ_3 Kodu","Faaliyet Tanımı","İTÜ Akademik Atama Esasları Puanı","SAYI","PUAN"]
[null,null,"O",null,null,"İdari Görevler ve Komisyon/Kurul Çalışmaları"]
[null,null,null,"O1",null,"İdari görevler/yıl",5,1,10]
[null,null,null,"O2",null,"Komisyon ve kurul çalışmaları/yıl",1,12,30]
[null,null,"O",null,null,"İdari Görevler ve Komisyon/Kurul Çalışmaları Toplamı",null,{"$f":"SUM(H110:H111)","v":13},{"$f":"SUM(I110:I111)","v":40}]
[null,null,"DZ_1 Kodu","DZ_2 Kodu","DZ_3 Kodu","Faaliyet Tanımı","İTÜ Akademik Atama Esasları Puanı","SAYI","PUAN"]
[null,null,"P",null,null,"Araştırma Projeleri"]
[null,null,null,"P1",null,"A türü projeler"]
[null,null,null,null,"P1a","Yürütücü",30,1,30]
[null,null,null,null,"P1b","Araştırmacı",10,0,0]
[null,null,null,null,"P1c","Danışman",5,0,0]
[null,null,null,"P2",null,"B türü projeler"]
[null,null,null,null,"P2a","Yürütücü",20,5,100]
[null,null,null,null,"P2b","Araştırmacı",7,1,7]
[null,null,null,null,"P2c","Danışman",3,0,0]
[null,null,null,"P3",null,"C türü projeler"]
[null,null,null,null,"P3a","Yürütücü",10,0,0]
[null,null,null,null,"P3b","Araştırmacı",3,0,0]
[null,null,"P",null,null,"Araştırma Projeleri Toplamı",null,{"$f":"SUM(H116:H125)","v":7},{"$f":"SUM(I116:I125)","v":137}]
[null,null,"DZ_1 Kodu","DZ_2 Kodu","DZ_3 Kodu","Faaliyet Tanımı","İTÜ Akademik Atama Esasları Puanı","SAYI","PUAN"]
[null,null,"R",null,null,"Diğer Akademik Faaliyetler"]
[null,null,null,"R1",null,"Bilimsel Toplantı Düzenleme"]
[null,null,null,null,"R1a","Uluslararası",30,2,60]
[null,null,null,null,"R1b","Ulusal",10,2,20]
[null,null,null,"R2",null,"Bilimsel toplantılarda seçici/bilim kurulu üyeliği"]
[null,null,null,null,"R2a","Uluslararası",30,6,180]
[null,null,null,null,"R2b","Ulusal",10,5,20]
[null,null,null,"R3",null,"Yarışma jüri üyeliği"]
[null,null,null,null,"R3a","Uluslararası",20,0,0]
[null,null,null,null,"R3b","Ulusal",10,0,0]
[null,null,"R",null,null,"Diğer Akademik Faaliyetler Toplamı",null,{"$f":"SUM(H130:H137)","v":15},{"$f":"SUM(I130:I137)","v":280}]
[null,null,"AKADEMİK PERSONEL TOPLAM PUANI",null,null,null,null,{"$f":"H17+H23+H29+H34+H40+H48+H53+H58+H63+H71+H78+H84+H102+H107+H112+H126+H138","v":120},{"$f":"I17+I23+I29+I34+I40+I48+I53+I58+I63+I71+I78+I84+I102+I107+I112+I126+I138","v":856}]

{"sheet":"03_PERFORMANS ÖZETİ & GRAFİKLER","index":2,"n_rows":24,"n_cols":19,"rows_kept":24,"cut":false,"hidden":false,"merged":[[23,4,58,4],[0,1,0,4],[0,6,0,18],[1,1,1,4],[2,1,4,1],[2,2,4,2],[2,3,4,3]]}
[null,"89_Z_ÖĞRETİM ÜYESİNİN PERFORMANS ÖZET RAPORU ve GRAFİĞİ",null,null,null,null,"GRAFİK ÇIKTILAR"]
[null,"Bu tablo, daha önceki sekmelerde tanımladığınız verileri standart puanlarla çarparak raporlamaktadır; değerler diğer tablolardan okunur ve otomatik hesaplama sonucu hesaplanır; lütfen herhangi bir müdahalede bulunmayınız. E Sütunundaki X, Y, Z verileri A Sekmesinde tanımladığınız Sicil No, Ünvan ve İsim Soyadı alanlarından taşınmaktadır, müdahale etmeyiniz.",null,null,null,null,1,null,null,null,null,null,null,null,null,null,null,null,2]
[null,null,"FAALİYET KODU","FAALİYET TANIMI",2725]
[null,null,null,null,"Prof.Dr."]
[null,null,null,null,"ALAATTİN KANOĞLU"]
[null,null,"A","Uluslararası Araştırma Makaleleri Toplamı",{"$f":"'02_AKADEMİK PERSONEL PERFORMANS'!$I$17","v":78}]
[null,null,"B","Uluslararası Bildiriler Toplamı",{"$f":"'02_AKADEMİK PERSONEL PERFORMANS'!$I$23","v":156}]
[null,null,"C","Uluslararası Kitap Toplamı",{"$f":"'02_AKADEMİK PERSONEL PERFORMANS'!$I$29","v":0}]
[null,null,"D","Ulusal Araştırma Makaleleri Toplamı",{"$f":"'02_AKADEMİK PERSONEL PERFORMANS'!$I$34","v":3}]
[null,null,"E","Ulusal Bildiriler Toplamı",{"$f":"'02_AKADEMİK PERSONEL PERFORMANS'!$I$40","v":28}]
[null,null,"F","Ulusal Kitaplar Toplamı",{"$f":"'02_AKADEMİK PERSONEL PERFORMANS'!$I$48","v":0}]
[null,null,"G","Uluslararası atıflarla ilgili etki faktörü (e.f.) Puanı Toplamı",{"$f":"'02_AKADEMİK PERSONEL PERFORMANS'!$I$53","v":0}]
[null,null,"H","H İndeksi Puanı Toplamı",{"$f":"'02_AKADEMİK PERSONEL PERFORMANS'!$I$58","v":40}]
[null,null,"I","Uluslararası Dergilerde Hakemlikler Toplamı",{"$f":"'02_AKADEMİK PERSONEL PERFORMANS'!$I$63","v":4}]
[null,null,"J","Madde A'daki Dergilerde Üstlenilen Görevler",{"$f":"'02_AKADEMİK PERSONEL PERFORMANS'!$I$71","v":0}]
[null,null,"K","Tez Yönetimi (Tamamlanmış)",{"$f":"'02_AKADEMİK PERSONEL PERFORMANS'!$I$78","v":44}]
[null,null,"L","Patentler",{"$f":"'02_AKADEMİK PERSONEL PERFORMANS'!$I$84","v":0}]
[null,null,"M","Ödüller Puan Toplamı",{"$f":"'02_AKADEMİK PERSONEL PERFORMANS'!$I$102","v":0}]
[null,null,"N","Eğitime Katkı",{"$f":"'02_AKADEMİK PERSONEL PERFORMANS'!$I$107","v":46}]
[null,null,"O","İdari Görevler ve Komisyon/Kurul Çalışmaları",{"$f":"'02_AKADEMİK PERSONEL PERFORMANS'!$I$112","v":40}]
[null,null,"P","Araştırma Projeleri Toplam",{"$f":"'02_AKADEMİK PERSONEL PERFORMANS'!$I$126","v":137}]
[null,null,"R","Diğer Akademik Faaliyetler Toplam",{"$f":"'02_AKADEMİK PERSONEL PERFORMANS'!$I$138","v":280}]
[null,"ÖĞRETİM ÜYESİ TOPLAM PUANI",null,null,{"$f":"SUM(E6:E22)","v":856}]
[null,null,null,null,"Pembe sütun komple kopyalanıp, ÇG Excel Tablosundaki belirtilen alana PASTE SPECIAL komutu ile yapıştırılacaktır"]